[Event "*** SCC Grand Prix: Titled Tuesday Blitz"]
[Site "Chess.com"]
[Date "2020.08.25"]
[Round "10"]
[White "beto-betun"]
[Black "Rhinos1"]
[Result "1-0"]
[WhiteElo "2123"]
[BlackElo "2210"]
[TimeControl "180+1"]
[EndTime "11:59:10 PDT"]
[Termination "beto-betun won by checkmate"]

1. d4 {[%clk 0:03:00.9]} 1... e6 {[%clk 0:02:35.5]} 2. Nf3 {[%clk 0:02:58.7]}
2... c5 {[%clk 0:02:35.7]} 3. e3 {[%clk 0:02:48.1]} 3... Nf6 {[%clk 0:02:35.1]}
4. Bd3 {[%clk 0:02:47.8]} 4... cxd4 {[%clk 0:02:35]} 5. exd4 {[%clk 0:02:45.8]}
5... Nc6 {[%clk 0:02:35.6]} 6. O-O {[%clk 0:02:41.8]} 6... Be7 {[%clk
0:02:36.2]} 7. c3 {[%clk 0:02:35.5]} 7... O-O {[%clk 0:02:36.5]} 8. Bf4 {[%clk
0:02:32.8]} 8... d6 {[%clk 0:02:34]} 9. h3 {[%clk 0:02:30.8]} 9... a6 {[%clk
0:02:33.6]} 10. Nbd2 {[%clk 0:02:24.3]} 10... b5 {[%clk 0:02:32.5]} 11. Qe2
{[%clk 0:02:21.9]} 11... Bb7 {[%clk 0:02:32.2]} 12. Rad1 {[%clk 0:02:10.7]}
12... Nd5 {[%clk 0:02:26.8]} 13. Bg3 {[%clk 0:02:08]} 13... Re8 {[%clk
0:02:24.2]} 14. Rfe1 {[%clk 0:02:06.4]} 14... Bf8 {[%clk 0:02:23.6]} 15. Bb1
{[%clk 0:02:00.5]} 15... Nce7 {[%clk 0:02:19.4]} 16. Bxh7+ {[%clk 0:01:40.4]}
16... Kxh7 {[%clk 0:02:17.2]} 17. Ng5+ {[%clk 0:01:40.4]} 17... Kg8 {[%clk
0:02:15]} 18. Qh5 {[%clk 0:01:37.9]} 18... Nf6 {[%clk 0:02:02.4]} 19. Qxf7+
{[%clk 0:01:36.3]} 19... Kh8 {[%clk 0:02:02.9]} 20. Rxe6 {[%clk 0:01:16.2]}
20... Bd5 {[%clk 0:01:59]} 21. Rxf6 {[%clk 0:01:07]} 21... Bxf7 {[%clk
0:01:58.2]} 22. Nxf7+ {[%clk 0:01:07.1]} 22... Kg8 {[%clk 0:01:56.9]} 23. Nxd8
{[%clk 0:01:06.2]} 23... gxf6 {[%clk 0:01:57.4]} 24. Ne6 {[%clk 0:01:03]} 24...
Nf5 {[%clk 0:01:53.4]} 25. Nc7 {[%clk 0:00:57.3]} 25... Nxg3 {[%clk 0:01:51]}
26. fxg3 {[%clk 0:00:58.2]} 26... Rac8 {[%clk 0:01:47.6]} 27. Nxe8 {[%clk
0:00:56.1]} 27... Rxe8 {[%clk 0:01:48.5]} 28. Kf2 {[%clk 0:00:54.2]} 28... Bh6
{[%clk 0:01:46.9]} 29. Nf3 {[%clk 0:00:52.4]} 29... Be3+ {[%clk 0:01:46.1]} 30.
Kf1 {[%clk 0:00:50.4]} 30... Bh6 {[%clk 0:01:40.6]} 31. Re1 {[%clk 0:00:45.6]}
31... Rc8 {[%clk 0:01:38.6]} 32. Nh4 {[%clk 0:00:42.5]} 32... b4 {[%clk
0:01:32.4]} 33. Nf5 {[%clk 0:00:40.8]} 33... Bd2 {[%clk 0:01:30.6]} 34. Ne7+
{[%clk 0:00:37.7]} 34... Kf7 {[%clk 0:01:27.1]} 35. Nxc8 {[%clk 0:00:37.8]}
35... bxc3 {[%clk 0:01:25]} 36. Nxd6+ {[%clk 0:00:32.9]} 36... Kg6 {[%clk
0:01:20]} 37. bxc3 {[%clk 0:00:32.5]} 37... Bxc3 {[%clk 0:01:16.2]} 38. d5
{[%clk 0:00:26.4]} 38... Be5 {[%clk 0:01:11.4]} 39. Nc4 {[%clk 0:00:24.6]} 39...
Bxg3 {[%clk 0:01:12.3]} 40. d6 {[%clk 0:00:17.6]} 40... Bh4 {[%clk 0:01:09.9]}
41. d7 {[%clk 0:00:15.9]} 41... f5 {[%clk 0:01:10.8]} 42. Re8 {[%clk 0:00:13.9]}
42... Kf7 {[%clk 0:01:09.3]} 43. d8=Q {[%clk 0:00:13.3]} 43... Bxd8 {[%clk
0:01:09.9]} 44. Rxd8 {[%clk 0:00:13.8]} 44... Ke6 {[%clk 0:01:10.8]} 45. Rd6+
{[%clk 0:00:13.7]} 45... Ke7 {[%clk 0:01:10.3]} 46. Rxa6 {[%clk 0:00:14.1]}
46... f4 {[%clk 0:01:10.1]} 47. a4 {[%clk 0:00:14.2]} 47... f3 {[%clk
0:01:10.5]} 48. gxf3 {[%clk 0:00:14.2]} 48... Kd7 {[%clk 0:01:10.4]} 49. Rb6
{[%clk 0:00:14.6]} 49... Kc7 {[%clk 0:01:11.3]} 50. a5 {[%clk 0:00:14.9]} 50...
Kd7 {[%clk 0:01:11.5]} 51. a6 {[%clk 0:00:15.4]} 51... Ke7 {[%clk 0:01:12.4]}
52. a7 {[%clk 0:00:16]} 52... Kd7 {[%clk 0:01:13.3]} 53. a8=Q {[%clk 0:00:15.6]}
53... Kc7 {[%clk 0:01:14.2]} 54. Qa7+ {[%clk 0:00:15.7]} 54... Kc8 {[%clk
0:01:14.2]} 55. Rb8# {[%clk 0:00:16.6]} 1-0

[Event "*** SCC Grand Prix: Titled Tuesday Blitz"]
[Site "Chess.com"]
[Date "2020.08.25"]
[Round "10"]
[White "tk22h"]
[Black "maxip32"]
[Result "1-0"]
[WhiteElo "2303"]
[BlackElo "2395"]
[TimeControl "180+1"]
[EndTime "11:59:12 PDT"]
[Termination "tk22h won by checkmate"]

1. c4 {[%clk 0:03:00.9]} 1... g6 {[%clk 0:02:59.5]} 2. Nc3 {[%clk 0:02:59]} 2...
Bg7 {[%clk 0:02:59.4]} 3. Nf3 {[%clk 0:02:58.7]} 3... d6 {[%clk 0:02:58.3]} 4.
d4 {[%clk 0:02:58.7]} 4... Nf6 {[%clk 0:02:57.3]} 5. g3 {[%clk 0:02:58.5]} 5...
O-O {[%clk 0:02:57]} 6. Bg2 {[%clk 0:02:58.7]} 6... Nbd7 {[%clk 0:02:57.4]} 7.
O-O {[%clk 0:02:58.7]} 7... e5 {[%clk 0:02:57.9]} 8. h3 {[%clk 0:02:57.2]} 8...
Re8 {[%clk 0:02:57.4]} 9. dxe5 {[%clk 0:02:56.4]} 9... dxe5 {[%clk 0:02:57.2]}
10. Be3 {[%clk 0:02:56.5]} 10... h6 {[%clk 0:02:54.1]} 11. Qa4 {[%clk
0:02:56.1]} 11... Qe7 {[%clk 0:02:53.8]} 12. Rfd1 {[%clk 0:02:55.4]} 12... c6
{[%clk 0:02:53.9]} 13. Rd2 {[%clk 0:02:51.8]} 13... e4 {[%clk 0:02:37.3]} 14.
Nd4 {[%clk 0:02:49.2]} 14... Nc5 {[%clk 0:02:37.2]} 15. Qa3 {[%clk 0:02:49]}
15... Nfd7 {[%clk 0:02:38.1]} 16. Rad1 {[%clk 0:02:47]} 16... Bf8 {[%clk
0:02:32.6]} 17. Nc2 {[%clk 0:02:37.3]} 17... Ne5 {[%clk 0:01:57.1]} 18. Bxc5
{[%clk 0:02:21.7]} 18... Qxc5 {[%clk 0:01:56.6]} 19. Qxc5 {[%clk 0:02:21.8]}
19... Bxc5 {[%clk 0:01:57.4]} 20. Nxe4 {[%clk 0:02:21.2]} 20... Be7 {[%clk
0:01:56]} 21. b3 {[%clk 0:02:19]} 21... f5 {[%clk 0:01:44.6]} 22. Nd6 {[%clk
0:02:18.6]} 22... Bxd6 {[%clk 0:01:41.2]} 23. Rxd6 {[%clk 0:02:19.5]} 23... Kg7
{[%clk 0:01:40.9]} 24. e3 {[%clk 0:02:19.5]} 24... Be6 {[%clk 0:01:39.3]} 25.
Nd4 {[%clk 0:02:18.8]} 25... Bc8 {[%clk 0:01:26.5]} 26. Nf3 {[%clk 0:02:16.4]}
26... Nf7 {[%clk 0:01:26.2]} 27. R6d2 {[%clk 0:02:15.1]} 27... Be6 {[%clk
0:01:25.9]} 28. Nd4 {[%clk 0:02:10.7]} 28... Bc8 {[%clk 0:01:25.3]} 29. h4
{[%clk 0:02:08.6]} 29... h5 {[%clk 0:01:24.1]} 30. Ne2 {[%clk 0:02:06.6]} 30...
a5 {[%clk 0:01:24.3]} 31. Nf4 {[%clk 0:02:03.8]} 31... a4 {[%clk 0:01:24.2]} 32.
b4 {[%clk 0:02:03.7]} 32... a3 {[%clk 0:01:24.1]} 33. b5 {[%clk 0:02:00.2]}
33... cxb5 {[%clk 0:01:10.1]} 34. cxb5 {[%clk 0:02:00.1]} 34... Ra5 {[%clk
0:01:11]} 35. Rd5 {[%clk 0:01:50.7]} 35... b6 {[%clk 0:01:07.3]} 36. Rc1 {[%clk
0:01:50.2]} 36... Ra7 {[%clk 0:00:58.7]} 37. Rc6 {[%clk 0:01:39.7]} 37... Ne5
{[%clk 0:00:42.5]} 38. Rxe5 {[%clk 0:01:37.3]} 38... Rxe5 {[%clk 0:00:41.4]} 39.
Rxc8 {[%clk 0:01:37.2]} 39... Rxb5 {[%clk 0:00:41.1]} 40. Rc6 {[%clk 0:01:36.9]}
40... Rb1+ {[%clk 0:00:39.6]} 41. Kh2 {[%clk 0:01:36]} 41... b5 {[%clk
0:00:36.8]} 42. Rxg6+ {[%clk 0:01:34.9]} 42... Kf8 {[%clk 0:00:36.1]} 43. Bd5
{[%clk 0:01:33.6]} 43... Ra4 {[%clk 0:00:27]} 44. Rb6 {[%clk 0:01:23.6]} 44...
b4 {[%clk 0:00:24]} 45. Rb7 {[%clk 0:01:23.2]} 45... Ra5 {[%clk 0:00:19.3]} 46.
Ng6+ {[%clk 0:01:01.1]} 46... Ke8 {[%clk 0:00:18.3]} 47. Be6 {[%clk 0:01:01.3]}
47... Ra6 {[%clk 0:00:17]} 48. Rb8# {[%clk 0:00:58.8]} 1-0

[Event "*** SCC Grand Prix: Titled Tuesday Blitz"]
[Site "Chess.com"]
[Date "2020.08.25"]
[Round "10"]
[White "Bodnar_Mykola"]
[Black "BakaPG"]
[Result "0-1"]
[WhiteElo "2517"]
[BlackElo "2691"]
[TimeControl "180+1"]
[EndTime "11:59:13 PDT"]
[Termination "BakaPG won by checkmate"]

1. e4 {[%clk 0:03:00.9]} 1... e6 {[%clk 0:02:56.5]} 2. d4 {[%clk 0:03:00.4]}
2... d5 {[%clk 0:02:55.2]} 3. Nc3 {[%clk 0:03:00.1]} 3... Nf6 {[%clk 0:02:55.1]}
4. e5 {[%clk 0:02:57.2]} 4... Nfd7 {[%clk 0:02:55.1]} 5. h4 {[%clk 0:02:52]}
5... c5 {[%clk 0:02:55.2]} 6. Bg5 {[%clk 0:02:43.5]} 6... Qb6 {[%clk 0:02:51.5]}
7. Nf3 {[%clk 0:02:32.4]} 7... Nc6 {[%clk 0:02:40.3]} 8. dxc5 {[%clk 0:02:16.7]}
8... Bxc5 {[%clk 0:02:39.2]} 9. Qd2 {[%clk 0:02:02]} 9... Ndxe5 {[%clk
0:02:26.3]} 10. Nxe5 {[%clk 0:02:02.1]} 10... Nxe5 {[%clk 0:02:26.3]} 11. Na4
{[%clk 0:02:03]} 11... Qc6 {[%clk 0:02:15.6]} 12. Nxc5 {[%clk 0:01:55.2]} 12...
Qxc5 {[%clk 0:02:15.6]} 13. Be3 {[%clk 0:01:55.8]} 13... Qe7 {[%clk 0:02:04.2]}
14. Qc3 {[%clk 0:01:45]} 14... f6 {[%clk 0:02:03.1]} 15. Be2 {[%clk 0:01:38.8]}
15... Nc6 {[%clk 0:02:00.5]} 16. Bc5 {[%clk 0:01:35.8]} 16... Qc7 {[%clk
0:01:59.5]} 17. O-O-O {[%clk 0:01:28.6]} 17... Bd7 {[%clk 0:01:52.5]} 18. Rhe1
{[%clk 0:01:27.5]} 18... O-O-O {[%clk 0:01:50.9]} 19. Qa3 {[%clk 0:01:14.5]}
19... Qa5 {[%clk 0:01:31.9]} 20. Qxa5 {[%clk 0:01:11]} 20... Nxa5 {[%clk
0:01:32]} 21. Bxa7 {[%clk 0:01:11.9]} 21... Nc6 {[%clk 0:01:30.5]} 22. Bb6
{[%clk 0:01:11.2]} 22... Rde8 {[%clk 0:01:28.9]} 23. c4 {[%clk 0:01:10.3]} 23...
dxc4 {[%clk 0:01:19.9]} 24. Bxc4 {[%clk 0:01:11.2]} 24... Ne5 {[%clk 0:01:19.4]}
25. Bb3 {[%clk 0:01:06.3]} 25... Bc6 {[%clk 0:01:16.8]} 26. f4 {[%clk 0:01:05]}
26... Nd7 {[%clk 0:01:16.8]} 27. Bxe6 {[%clk 0:01:04.7]} 27... Rxe6 {[%clk
0:01:16]} 28. Rxe6 {[%clk 0:01:02.3]} 28... Nxb6 {[%clk 0:01:16.2]} 29. Re7
{[%clk 0:00:56.9]} 29... g6 {[%clk 0:01:15.1]} 30. g3 {[%clk 0:00:45.5]} 30...
f5 {[%clk 0:01:14.2]} 31. Rg7 {[%clk 0:00:39.2]} 31... Nd5 {[%clk 0:01:07.5]}
32. Re1 {[%clk 0:00:34]} 32... Kb8 {[%clk 0:00:55.8]} 33. a3 {[%clk 0:00:32.6]}
33... Nf6 {[%clk 0:00:50.8]} 34. Ree7 {[%clk 0:00:30]} 34... Rc8 {[%clk
0:00:47.7]} 35. Kb1 {[%clk 0:00:27.9]} 35... Be4+ {[%clk 0:00:41.5]} 36. Ka2
{[%clk 0:00:28.1]} 36... Bd5+ {[%clk 0:00:38.9]} 37. Kb1 {[%clk 0:00:27.2]}
37... Ne4 {[%clk 0:00:38.2]} 38. Rxh7 {[%clk 0:00:23.7]} 38... Nd2+ {[%clk
0:00:37.8]} 39. Ka1 {[%clk 0:00:22.1]} 39... Rc1# {[%clk 0:00:37.1]} 0-1

[Event "*** SCC Grand Prix: Titled Tuesday Blitz"]
[Site "Chess.com"]
[Date "2020.08.25"]
[Round "10"]
[White "attack2mateU"]
[Black "vovachesss"]
[Result "1-0"]
[WhiteElo "2711"]
[BlackElo "2583"]
[TimeControl "180+1"]
[EndTime "11:59:14 PDT"]
[Termination "attack2mateU won by resignation"]

1. e4 {[%clk 0:03:00.9]} 1... d5 {[%clk 0:02:56.7]} 2. exd5 {[%clk 0:03:00.3]}
2... Qxd5 {[%clk 0:02:57.6]} 3. Nc3 {[%clk 0:03:00.3]} 3... Qd8 {[%clk
0:02:57.6]} 4. d4 {[%clk 0:02:59.4]} 4... Nf6 {[%clk 0:02:58.5]} 5. Nf3 {[%clk
0:02:59.5]} 5... Bg4 {[%clk 0:02:57.4]} 6. h3 {[%clk 0:02:58.6]} 6... Bh5 {[%clk
0:02:57.5]} 7. g4 {[%clk 0:02:57.2]} 7... Bg6 {[%clk 0:02:57.3]} 8. Bc4 {[%clk
0:02:54.6]} 8... Nbd7 {[%clk 0:02:53.2]} 9. Be3 {[%clk 0:02:44.7]} 9... e6
{[%clk 0:02:53]} 10. Qe2 {[%clk 0:02:42.9]} 10... Bd6 {[%clk 0:02:50.3]} 11.
O-O-O {[%clk 0:02:40.9]} 11... c6 {[%clk 0:02:49.5]} 12. Ne5 {[%clk 0:02:38.3]}
12... Qa5 {[%clk 0:02:32.1]} 13. f4 {[%clk 0:02:36.3]} 13... Ne4 {[%clk
0:02:30.6]} 14. Nxe4 {[%clk 0:02:15.6]} 14... Bxe4 {[%clk 0:02:30.5]} 15. Bd2
{[%clk 0:02:16.2]} 15... Qa4 {[%clk 0:01:32.5]} 16. Bb3 {[%clk 0:02:02.2]} 16...
Qxd4 {[%clk 0:01:30.4]} 17. Bc3 {[%clk 0:01:59.1]} 17... Bd3 {[%clk 0:01:09.3]}
18. Rxd3 {[%clk 0:01:56.5]} 18... Qxf4+ {[%clk 0:01:08.4]} 19. Kb1 {[%clk
0:01:26.1]} 19... Bxe5 {[%clk 0:01:05.9]} 20. Rf1 {[%clk 0:01:20.4]} 20... Qh2
{[%clk 0:00:20.3]} 21. Rf2 {[%clk 0:01:19.2]} 21... Qg1+ {[%clk 0:00:20.2]} 22.
Rd1 {[%clk 0:01:18.8]} 22... Qg3 {[%clk 0:00:20.8]} 23. Rxd7 {[%clk 0:01:05.6]}
23... Bxc3 {[%clk 0:00:16.5]} 24. bxc3 {[%clk 0:00:23.8]} 24... Kxd7 {[%clk
0:00:07.4]} 25. Rxf7+ {[%clk 0:00:24.2]} 25... Kd6 {[%clk 0:00:08.3]} 26. Qxe6+
{[%clk 0:00:24.1]} 26... Kc5 {[%clk 0:00:09]} 27. Qe7+ {[%clk 0:00:24.5]} 27...
Qd6 {[%clk 0:00:05.9]} 28. Rf5+ {[%clk 0:00:22.8]} 1-0

[Event "*** SCC Grand Prix: Titled Tuesday Blitz"]
[Site "Chess.com"]
[Date "2020.08.25"]
[Round "10"]
[White "Karina_Ivanova"]
[Black "rugbyclub"]
[Result "1-0"]
[WhiteElo "2252"]
[BlackElo "2168"]
[TimeControl "180+1"]
[EndTime "11:59:15 PDT"]
[Termination "Karina_Ivanova won by resignation"]

1. d4 {[%clk 0:03:00.9]} 1... d5 {[%clk 0:02:58.9]} 2. Nf3 {[%clk 0:03:00.7]}
2... Nf6 {[%clk 0:02:58]} 3. g3 {[%clk 0:03:00.8]} 3... b5 {[%clk 0:02:55.2]} 4.
Bg2 {[%clk 0:03:00]} 4... Bb7 {[%clk 0:02:54.9]} 5. a4 {[%clk 0:02:58.2]} 5...
b4 {[%clk 0:02:53.1]} 6. O-O {[%clk 0:02:52.8]} 6... e6 {[%clk 0:02:53.1]} 7.
Ne5 {[%clk 0:02:52.3]} 7... c5 {[%clk 0:02:52.3]} 8. c4 {[%clk 0:02:51.2]} 8...
cxd4 {[%clk 0:02:47.4]} 9. Qxd4 {[%clk 0:02:49]} 9... Nc6 {[%clk 0:02:46.6]} 10.
Nxc6 {[%clk 0:02:47.7]} 10... Bxc6 {[%clk 0:02:47.1]} 11. Bg5 {[%clk 0:02:43.7]}
11... Be7 {[%clk 0:02:46.9]} 12. cxd5 {[%clk 0:02:41.1]} 12... Bxd5 {[%clk
0:02:41.5]} 13. Bxd5 {[%clk 0:02:37.9]} 13... Qxd5 {[%clk 0:02:34.9]} 14. Bxf6
{[%clk 0:02:28.2]} 14... Bxf6 {[%clk 0:02:31]} 15. Qxb4 {[%clk 0:02:27.9]} 15...
Qe5 {[%clk 0:02:10.9]} 16. Nc3 {[%clk 0:02:20.7]} 16... Rb8 {[%clk 0:02:10.7]}
17. Qe4 {[%clk 0:01:59.3]} 17... Qxe4 {[%clk 0:02:05.1]} 18. Nxe4 {[%clk
0:01:58.1]} 18... Rxb2 {[%clk 0:01:41.5]} 19. Nxf6+ {[%clk 0:01:57.2]} 19...
gxf6 {[%clk 0:01:40.6]} 20. Rab1 {[%clk 0:01:58.1]} 20... Rxb1 {[%clk
0:01:31.7]} 21. Rxb1 {[%clk 0:01:57.8]} 21... O-O {[%clk 0:01:23]} 22. Rb7
{[%clk 0:01:57.1]} 22... Ra8 {[%clk 0:01:23.3]} 23. a5 {[%clk 0:01:56.6]} 23...
f5 {[%clk 0:01:22.7]} 24. a6 {[%clk 0:01:54.6]} 24... Kg7 {[%clk 0:01:23.1]} 25.
f4 {[%clk 0:01:53.8]} 25... Kf6 {[%clk 0:01:20.5]} 26. Kf2 {[%clk 0:01:51.9]}
26... h5 {[%clk 0:01:19]} 27. Kf3 {[%clk 0:01:41.6]} 27... Kg6 {[%clk 0:01:16]}
28. e4 {[%clk 0:01:38.5]} 28... fxe4+ {[%clk 0:01:15.3]} 29. Kxe4 {[%clk
0:01:39.4]} 29... Kf6 {[%clk 0:01:12.9]} 30. Rd7 {[%clk 0:01:26.5]} 30... Kg6
{[%clk 0:01:10.4]} 31. Ke5 {[%clk 0:01:24.6]} 31... Kg7 {[%clk 0:00:57.1]} 32.
Kd6 {[%clk 0:01:21.2]} 32... Kf6 {[%clk 0:00:52]} 33. Kc6 {[%clk 0:01:16.8]}
33... Rb8 {[%clk 0:00:49.6]} 34. Rb7 {[%clk 0:01:09.2]} 34... Rc8+ {[%clk
0:00:45.6]} 35. Rc7 {[%clk 0:01:09.1]} 35... Rb8 {[%clk 0:00:45.5]} 36. Rxa7
{[%clk 0:01:08.9]} 36... Rb2 {[%clk 0:00:44.3]} 37. Rb7 {[%clk 0:01:07.3]} 37...
Rc2+ {[%clk 0:00:32.7]} 38. Kd7 {[%clk 0:01:04.3]} 38... Rxh2 {[%clk 0:00:28.8]}
39. a7 {[%clk 0:01:03.8]} 39... Ra2 {[%clk 0:00:28.1]} 40. Kc8 {[%clk
0:01:04.4]} 40... Kf5 {[%clk 0:00:24.1]} 41. Rxf7+ {[%clk 0:01:03.8]} 41... Kg4
{[%clk 0:00:22.5]} 42. Rg7+ {[%clk 0:01:03.7]} 42... Kf3 {[%clk 0:00:22]} 43.
Kb8 {[%clk 0:01:02.4]} 43... Rb2+ {[%clk 0:00:17.7]} 44. Rb7 {[%clk 0:01:01.7]}
44... Ra2 {[%clk 0:00:17.8]} 45. Rb3+ {[%clk 0:01:01.1]} 45... Kg4 {[%clk
0:00:16]} 46. a8=Q {[%clk 0:01:00.5]} 1-0

[Event "*** SCC Grand Prix: Titled Tuesday Blitz"]
[Site "Chess.com"]
[Date "2020.08.25"]
[Round "10"]
[White "Witik"]
[Black "bazar-wokzal"]
[Result "0-1"]
[WhiteElo "2634"]
[BlackElo "2498"]
[TimeControl "180+1"]
[EndTime "11:59:18 PDT"]
[Termination "bazar-wokzal won by resignation"]

1. g4 {[%clk 0:02:56.2]} 1... e5 {[%clk 0:02:57.8]} 2. Bg2 {[%clk 0:02:55.8]}
2... h5 {[%clk 0:02:57.3]} 3. gxh5 {[%clk 0:02:44.6]} 3... Qh4 {[%clk 0:02:54]}
4. Nf3 {[%clk 0:02:29.3]} 4... Qxh5 {[%clk 0:02:53.7]} 5. Nc3 {[%clk 0:02:28.3]}
5... Nf6 {[%clk 0:02:52.2]} 6. d4 {[%clk 0:02:22.7]} 6... e4 {[%clk 0:02:48.4]}
7. Ng5 {[%clk 0:02:20.7]} 7... d5 {[%clk 0:02:47.9]} 8. h4 {[%clk 0:01:57.7]}
8... c6 {[%clk 0:02:46.7]} 9. Bf4 {[%clk 0:01:56]} 9... Bb4 {[%clk 0:02:41.1]}
10. Qd2 {[%clk 0:01:53.1]} 10... Nbd7 {[%clk 0:02:31.9]} 11. O-O-O {[%clk
0:01:52.3]} 11... Nb6 {[%clk 0:02:31.6]} 12. b3 {[%clk 0:01:17.7]} 12... a5
{[%clk 0:02:16]} 13. Kb2 {[%clk 0:01:17]} 13... a4 {[%clk 0:02:13.3]} 14. a3
{[%clk 0:01:15.6]} 14... axb3 {[%clk 0:02:07.9]} 15. cxb3 {[%clk 0:01:12.1]}
15... Bxa3+ {[%clk 0:02:07]} 16. Kc2 {[%clk 0:01:08.9]} 16... Bb4 {[%clk
0:02:07.1]} 17. Ra1 {[%clk 0:00:59.4]} 17... O-O {[%clk 0:01:57.9]} 18. Rxa8
{[%clk 0:00:58.5]} 18... Nxa8 {[%clk 0:01:58.1]} 19. Qe3 {[%clk 0:00:55]} 19...
Bf5 {[%clk 0:01:50.7]} 20. Kb2 {[%clk 0:00:47.5]} 20... Nb6 {[%clk 0:01:41]} 21.
Rg1 {[%clk 0:00:46.6]} 21... Ng4 {[%clk 0:01:22.8]} 22. Qg3 {[%clk 0:00:46.3]}
22... f6 {[%clk 0:01:22.3]} 23. Ngxe4 {[%clk 0:00:37.8]} 23... dxe4 {[%clk
0:01:17.8]} 24. Bh3 {[%clk 0:00:37.9]} 24... Bxc3+ {[%clk 0:01:12.5]} 25. Kxc3
{[%clk 0:00:36.5]} 25... Nd5+ {[%clk 0:01:12.8]} 26. Kb2 {[%clk 0:00:37.1]}
26... Nxf4 {[%clk 0:01:10.4]} 27. Qxf4 {[%clk 0:00:37.3]} 27... Nh6 {[%clk
0:01:05.2]} 28. Bxf5 {[%clk 0:00:33.1]} 28... Nxf5 {[%clk 0:01:03.8]} 29. Qxe4
{[%clk 0:00:33.5]} 29... Re8 {[%clk 0:01:00.9]} 30. Qf4 {[%clk 0:00:20.5]} 30...
Qxe2+ {[%clk 0:00:54.2]} 31. Kc3 {[%clk 0:00:20.3]} 31... Ne7 {[%clk 0:00:47.1]}
32. Qd2 {[%clk 0:00:03.8]} 32... Nd5+ {[%clk 0:00:45.4]} 33. Kc2 {[%clk
0:00:03.6]} 33... Qxd2+ {[%clk 0:00:42.5]} 34. Kxd2 {[%clk 0:00:04]} 34... Re4
{[%clk 0:00:43]} 0-1

[Event "*** SCC Grand Prix: Titled Tuesday Blitz"]
[Site "Chess.com"]
[Date "2020.08.25"]
[Round "10"]
[White "RobertoJBM"]
[Black "biostatistician"]
[Result "0-1"]
[WhiteElo "2634"]
[BlackElo "2510"]
[TimeControl "180+1"]
[EndTime "11:59:21 PDT"]
[Termination "biostatistician won on time"]

1. e4 {[%clk 0:03:00.9]} 1... e6 {[%clk 0:02:59.6]} 2. d4 {[%clk 0:03:00.4]}
2... d5 {[%clk 0:03:00.5]} 3. Nd2 {[%clk 0:03:00.9]} 3... Nc6 {[%clk 0:03:00.8]}
4. Ngf3 {[%clk 0:02:58.1]} 4... Nf6 {[%clk 0:03:00]} 5. e5 {[%clk 0:02:58.2]}
5... Ne4 {[%clk 0:03:00.2]} 6. Bd3 {[%clk 0:02:53.1]} 6... Nxd2 {[%clk
0:03:00.1]} 7. Bxd2 {[%clk 0:02:51.8]} 7... Nb4 {[%clk 0:03:01]} 8. Bxb4 {[%clk
0:02:51.1]} 8... Bxb4+ {[%clk 0:03:01.9]} 9. c3 {[%clk 0:02:51.7]} 9... Be7
{[%clk 0:03:02.1]} 10. Qc2 {[%clk 0:02:51.8]} 10... c5 {[%clk 0:03:00.5]} 11.
O-O {[%clk 0:02:47.6]} 11... Bd7 {[%clk 0:02:57.5]} 12. Qe2 {[%clk 0:02:42]}
12... Qb6 {[%clk 0:02:56.3]} 13. a3 {[%clk 0:02:35]} 13... a5 {[%clk 0:02:54]}
14. a4 {[%clk 0:02:28.9]} 14... O-O {[%clk 0:02:51.5]} 15. Bb5 {[%clk
0:02:21.2]} 15... Bxb5 {[%clk 0:02:50.6]} 16. Qxb5 {[%clk 0:02:22.1]} 16... Qxb5
{[%clk 0:02:50.9]} 17. axb5 {[%clk 0:02:22.8]} 17... b6 {[%clk 0:02:48.3]} 18.
Ra4 {[%clk 0:02:22.1]} 18... Rac8 {[%clk 0:02:46.5]} 19. Rfa1 {[%clk 0:02:20.2]}
19... Rc7 {[%clk 0:02:46.5]} 20. Kf1 {[%clk 0:02:20]} 20... Rfc8 {[%clk
0:02:46.7]} 21. Ke2 {[%clk 0:02:20.5]} 21... f6 {[%clk 0:02:46.5]} 22. exf6
{[%clk 0:02:20.2]} 22... gxf6 {[%clk 0:02:45.6]} 23. Kd3 {[%clk 0:02:17.3]}
23... Kf7 {[%clk 0:02:45.1]} 24. Re1 {[%clk 0:02:16.6]} 24... Bd6 {[%clk
0:02:45.6]} 25. g3 {[%clk 0:02:15.5]} 25... Re8 {[%clk 0:02:45.5]} 26. c4 {[%clk
0:01:57]} 26... cxd4 {[%clk 0:02:31.8]} 27. Nxd4 {[%clk 0:01:57]} 27... Bb4
{[%clk 0:02:32.1]} 28. Rc1 {[%clk 0:01:25.6]} 28... Rd8 {[%clk 0:02:14.2]} 29.
Nc6 {[%clk 0:01:06.8]} 29... dxc4+ {[%clk 0:02:13]} 30. Ke2 {[%clk 0:00:50]}
30... Rd2+ {[%clk 0:02:12]} 31. Kf1 {[%clk 0:00:50.3]} 31... Rxb2 {[%clk
0:02:10.8]} 32. Rxc4 {[%clk 0:00:49.2]} 32... h5 {[%clk 0:01:54.6]} 33. Nd8+
{[%clk 0:00:34.8]} 33... Ke8 {[%clk 0:01:53]} 34. Rxc7 {[%clk 0:00:35.7]} 34...
Kxd8 {[%clk 0:01:52.9]} 35. Rc6 {[%clk 0:00:35.8]} 35... Bc5 {[%clk 0:01:50.2]}
36. Rf4 {[%clk 0:00:32.6]} 36... Ke7 {[%clk 0:01:47.2]} 37. Rc7+ {[%clk
0:00:29.8]} 37... Kd6 {[%clk 0:01:47]} 38. Rc6+ {[%clk 0:00:28.6]} 38... Ke5
{[%clk 0:01:47.3]} 39. Rc8 {[%clk 0:00:14.6]} 39... a4 {[%clk 0:01:45.1]} 40.
Ra8 {[%clk 0:00:09.3]} 40... a3 {[%clk 0:01:44.5]} 41. Raa4 {[%clk 0:00:09.4]}
41... Rxb5 {[%clk 0:01:31.2]} 42. Rae4+ {[%clk 0:00:09.2]} 42... Kd5 {[%clk
0:01:31.6]} 43. Re2 {[%clk 0:00:08]} 43... f5 {[%clk 0:01:30.2]} 44. Ra4 {[%clk
0:00:05.8]} 44... Rb1+ {[%clk 0:01:25.8]} 45. Kg2 {[%clk 0:00:05.8]} 45... Rb2
{[%clk 0:01:26.5]} 46. Kf3 {[%clk 0:00:05.4]} 46... e5 {[%clk 0:01:25.1]} 47.
Re3 {[%clk 0:00:01.6]} 47... e4+ {[%clk 0:01:21.1]} 0-1